Cogmind - Beta 16 @@@ ROGUE MODE // 2025.11.04 @ 02:31:08 Player: Maxfecteau Result: Destroyed by Y-72 Warden with Railgun Performance ------------- Evolutions (6) 3000 Regions Visited (18) 3600 Robots Destroyed (76) 380 Value Destroyed (2106) 2106 Prototype IDs (41) 820 Alien Tech Used (0) 0 Bonus (562) 562 TOTAL SCORE: 10468 Bonus ------- High Alert Combat Kills 41 Follower Combat Kills 221 Aligned with FarCom 300 Cogmind --------- Core Integrity 0/1150 Matter 300/300 Energy 99/100 System Corruption 0% Temperature Cool (0) Movement Core (50) Location -4/Factory Parts ------- > --- POWER (1) -------- (None) > --- PROPULSION (4) --- (None) > --- UTILITY (12) ----- (None) > --- WEAPON (2) ------- (None) > --- INVENTORY (5) ---- Damper Plating Advanced EMP Blaster Peak State ------------ > --- POWER ------------ Improved Ion Engine > --- PROPULSION ------- Improved Hover Unit Aerolev Unit Aerolev Unit Aerolev Unit > --- UTILITY ---------- Lightpack 2.0 Transmission Jammer Improved Light Armor Plating Layered Light Armor Plating Hacking Suite Hacking Suite System Shield System Shield > --- WEAPON ----------- Improved Proton Missile Launcher Ripper > --- INVENTORY -------- Improved Ion Engine Improved Ion Engine Gravmag System Gravmag System Gravmag System Gravmag System Cooled Aerolev Unit Linear Gravjet Improved Flight Unit Improved Flight Unit Improved VTOL Module Nuclear Pulse Thruster Nuclear Pulse Thruster Nuclear Pulse Thruster Improved Heat Sink Enhanced Optical Array Advanced Sensor Array Transmission Jammer Hardened Medium Armor Plating Hardened Medium Armor Plating Hardened Medium Armor Plating Hardened Medium Armor Plating Improved Medium Armor Plating Damper Plating System Shield Improved System Shield Dynamic Insulation System EM Pulse Cannon Coil Gun Advanced EMP Blaster Advanced EMP Blaster Improved Datajack Falx [Rating: 93] Favorites ----------- Power Light Nuclear Core Engine Light Ion Engine Power Core Light Nuclear Core Propulsion Light Treads Treads Light Treads Leg Improved Aluminum Leg Hover Unit Aerolev Unit Flight Unit Improved Flight Unit Utility Large Storage Unit Device Transmission Jammer Storage Large Storage Unit Processor Signal Interpreter Hackware Hacking Suite Protection Light Armor Plating Weapon High-powered Shotgun Ballistic Gun High-powered Shotgun Launcher Advanced EMP Blaster Impact Weapon Heavy Mace Slashing Weapon Ripper Special Melee Weapon Datajack Build | -11 -10 -10 -9 -9 -9 -8 -8 -8 -7 -7 -7 -6 -6 -6 -5 -5 -5 -4 ------- Run | Yrd Mat Min Mat Min Exi Min Mat Sto Fac Low Low Fac Low Low Fac Was Fac Fac Slots Evolved 12 | . . . 2 . . . 2 . 2 . . 2 . . 2 . . 2 Power . | . . . . . . . . . . . . . . . . . . . Propulsion 2 | . . . 1 . . . . . 1 . . . . . . . . . Utility 10 | . . . 1 . . . 2 . 1 . . 2 . . 2 . . 2 Weapon . | . . . . . . . . . . . . . . . . . . . Parts Attached 87 | 6 4 1 22 1 1 4 8 12 5 2 2 11 1 . 2 . 2 3 Power 11 | 1 . . 2 1 . 1 1 . 1 1 1 2 . . . . . . Engine 8 | 1 . . 2 1 . . . . 1 1 1 1 . . . . . . Core 3 | . . . . . . 1 1 . . . . 1 . . . . . . Reactor . | . . . . . . . . . . . . . . . . . . . Propulsion 27 | 2 2 . 8 . . 1 2 4 1 . . 5 . . . . 2 . Treads 7 | . . . 4 . . 1 2 . . . . . . . . . . . Leg 8 | 2 2 . 4 . . . . . . . . . . . . . . . Wheel . | . . . . . . . . . . . . . . . . . . . Hover 7 | . . . . . . . . . . . . 5 . . . . 2 . Flight 5 | . . . . . . . . 4 1 . . . . . . . . . Utility 25 | 1 . . 6 . . 1 4 3 3 . . 3 . . 2 . . 2 Device 4 | . . . 1 . . . . 1 . . . 1 . . . . . 1 Storage 3 | 1 . . 1 . . . . 1 . . . . . . . . . . Processor 1 | . . . 1 . . . . . . . . . . . . . . . Hackware 5 | . . . . . . . . . 3 . . 2 . . . . . . Protection 12 | . . . 3 . . 1 4 1 . . . . . . 2 . . 1 Artifact . | . . . . . . . . . . . . . . . . . . . Weapon 24 | 2 2 1 6 . 1 1 1 5 . 1 1 1 1 . . . . 1 Energy Gun . | . . . . . . . . . . . . . . . . . . . Energy Cannon . | . . . . . . . . . . . . . . . . . . . Ballistic Gun 12 | 2 2 . 6 . . 1 . . . . 1 . . . . . . . Ballistic Cannon . | . . . . . . . . . . . . . . . . . . . Launcher 7 | . . 1 . . . . 1 3 . 1 . 1 . . . . . . Special Weapon . | . . . . . . . . . . . . . . . . . . . Impact Weapon 1 | . . . . . . . . 1 . . . . . . . . . . Slashing Weapon 1 | . . . . . . . . . . . . . 1 . . . . . Piercing Weapon . | . . . . . . . . . . . . . . . . . . . Special Melee Weapon 3 | . . . . . 1 . . 1 . . . . . . . . . 1 Unidentified Prototypes 3 | . . . . . . . . 3 . . . . . . . . . . Parts Lost 57 | . . . 11 . . 3 10 7 . 4 1 . . . 1 . 14 6 Power 8 | . . . 1 . . 1 1 1 . 1 . . . . 1 . 2 . Propulsion 20 | . . . 5 . . 1 3 3 . 2 . . . . . . 5 1 Utility 21 | . . . 3 . . 1 5 2 . . 1 . . . . . 5 4 Weapon 8 | . . . 2 . . . 1 1 . 1 . . . . . . 2 1 Highest Loss Streak 9 | . . . 5 . . 3 5 5 . 2 1 . . . 1 . 9 6 To Critical Strikes . | . . . . . . . . . . . . . . . . . . . Average Backups 15 | . 6 7 10 15 13 10 12 21 20 23 25 22 23 26 25 27 31 1 Power . | . . . . . . . . . 1 2 3 3 3 3 2 2 1 . Propulsion 4 | . 1 2 . 2 2 1 4 9 5 5 5 5 6 7 7 7 11 . Utility 5 | . . 1 3 7 6 6 5 5 5 7 7 5 7 9 7 10 11 . Weapon 4 | . 2 3 4 5 4 2 1 5 7 6 7 6 5 5 5 5 5 1 Tool/Special . | . . . . . . . . . . . . . . . . . . . Unused Backups 45 | . 1 . 3 1 2 1 2 1 2 2 2 2 . . . 2 24 . Power . | . . . . . . . . . . . . . . . . . . . Propulsion 13 | . . . . . . . . 1 1 . . . . . . . 11 . Utility 17 | . . . 1 1 1 . 2 . . . 1 1 . . . . 10 . Weapon 13 | . 1 . 1 . 1 1 . . 1 2 1 1 . . . 1 3 . Tool/Special 2 | . . . 1 . . . . . . . . . . . . 1 . . Average Slot Usage (%) 81 | . 85 85 89 100 100 98 90 60 82 75 41 68 81 86 87 88 80 18 Engine 3 | . 14 14 7 11 11 . . . 6 5 . . . . 1 5 4 . Core 3 | . . . . . . 10 8 7 . . . 5 6 6 3 . . . Treads 15 | . . . 15 33 33 33 24 15 . . . . . . . . . . Leg 2 | . 28 28 13 . . . . . . . . . . . . . . . Hover 3 | . . . . . . . . . . . . 21 26 26 23 23 21 2 Flight 3 | . . . . . . . . 3 29 26 15 . . . . . . . Device 1 | . . . 2 . . . . . . . . 5 6 6 5 5 4 2 Storage 8 | . 14 14 11 11 11 11 9 9 7 7 7 6 6 6 5 5 4 . Processor 3 | . . . 10 11 11 11 . . . . . . . . . . . . Hackware 6 | . . . . . . . . . 22 23 18 24 26 26 23 23 22 10 Protection 11 | . . . 7 11 11 10 29 11 . . . . . . 10 11 7 . Ballistic Gun 10 | . 28 17 17 22 11 21 17 6 . . . . . . . . . . Launcher 2 | . . 10 2 . . . . 6 6 5 . 2 6 6 5 5 3 . Special Melee Weapon 1 | . . . . . 10 . . 1 . . . . . . . . . 2 Peak Build Rating 93 | 6 11 11 16 15 16 19 26 57 66 68 59 77 82 82 90 91 93 39 Average Rating 35 | 3 10 10 13 15 15 18 23 45 64 64 53 69 78 82 88 88 88 16 On Entrance 40 | . 6 11 10 15 15 16 19 18 49 66 54 52 77 82 82 87 91 17 Avg Prop Armor Cover (%) 5 | . . . 5 . . . . . . . . . . . . . . . Naked Turns 97 | . . . . . . . . . . . . . . . . . . 97 Heaviest Build 57 | 13 16 16 33 32 32 34 57 42 16 21 10 20 23 23 31 31 31 4 Greatest Support 60 | 20 26 26 60 60 60 60 60 40 20 20 10 31 31 31 32 32 35 9 Greatest Overweight (x) 3 | . . . 2 . . . 1 3 . 1 . . . . . . . . Average Overweight (x) . | . . . . . . . . . . . . . . . . . . . Largest Inventory Capacity 40 | 8 8 8 15 15 15 15 15 40 40 40 40 40 40 40 40 40 40 5 Average Capacity 23 | 7 8 8 14 15 15 15 15 35 40 40 40 40 40 40 40 40 39 5 Most Carried 37 | 3 7 8 15 15 15 15 15 25 24 25 28 28 26 26 26 32 37 5 Average Carried 16 | . 6 7 10 14 14 12 14 21 20 23 26 22 23 26 25 27 34 4 Final Capacity 40 | 8 8 8 15 15 15 15 15 40 40 40 40 40 40 40 40 40 5 5 Final Carried 32 | 1 7 7 15 15 15 13 14 22 24 24 28 23 26 26 25 32 5 5 Class Distribution -------------------- 41% | Scavenger-Mutant 18% | Mutant 15% | Hacker-Mutant 15% | Hauler-Mutant 9% | Hauler-Sprinter Dominant Class ---------------- Mutant | -10/Materials Mutant | -10/Mines Mutant | -9/Materials Scavenger-Mutant | -9/Mines Scavenger-Mutant | -9/Exiles Scavenger-Mutant | -8/Mines Scavenger-Mutant | -8/Materials Hauler-Mutant | -8/Storage Hauler-Sprinter | -7/Factory Hauler-Mutant | -7/Lower Caves Hauler-Mutant | -7/Lower Caves Hacker-Mutant | -6/Factory Hacker-Mutant | -6/Lower Caves Hacker-Mutant | -6/Lower Caves Hacker-Mutant | -5/Factory Hacker-Mutant | -5/Waste Hacker-Mutant | -5/Factory Hacker-Mutant | -4/Factory Resources | -11 -10 -10 -9 -9 -9 -8 -8 -8 -7 -7 -7 -6 -6 -6 -5 -5 -5 -4 ----------- Run | Yrd Mat Min Mat Min Exi Min Mat Sto Fac Low Low Fac Low Low Fac Was Fac Fac Matter Collected 2386 | 233 27 . 703 133 260 67 237 175 191 47 141 . 141 . . 25 6 . Remotely . | . . . . . . . . . . . . . . . . . . . Salvage Created 1966 | . 39 . 844 57 . 163 531 212 . . 50 . . . . . 70 . Parts 157 | . 4 . 85 10 . 5 33 13 . 1 3 . . . . . 3 . Haulers Intercepted 7 | . . . 3 . . . 4 . . . . . . . . . . . Recyclers Shooed 1 | . . . . . . . 1 . . . . . . . . . . . Parts Field Recycled . | . . . . . . . . . . . . . . . . . . . Retrieved Matter . | . . . . . . . . . . . . . . . . . . . Parts Self-Destructed 5 | . . . . . . . . . . 1 1 . 2 1 . . . . Prevented 1 | . . . . . . . . . . . . . 1 . . . . . Parts Restored . | . . . . . . . . . . . . . . . . . . . Kills | -11 -10 -10 -9 -9 -9 -8 -8 -8 -7 -7 -7 -6 -6 -6 -5 -5 -5 -4 ------- Run | Yrd Mat Min Mat Min Exi Min Mat Sto Fac Low Low Fac Low Low Fac Was Fac Fac Combat Hostiles Destroyed 53 | . 3 . 25 4 . 3 10 4 . 2 1 . . . . . 1 . Guns 32 | . 3 . 15 4 . 3 5 1 . . 1 . . . . . . . AOE 21 | . . . 10 . . . 5 3 . 2 . . . . . . 1 . Classes Destroyed 10 | . 1 . 8 . . . . . . . 1 . . . . . . . Worker 2 | . . . 1 . . . . 1 . . . . . . . . . . Builder 6 | . . . 3 . . . 2 1 . . . . . . . . . . Hauler 7 | . . . 3 . . . 4 . . . . . . . . . . . Operator 2 | . . . 1 . . . 1 . . . . . . . . . . . Watcher 6 | . . . 4 . . . 2 . . . . . . . . . . . Swarmer 18 | . 3 . 9 4 . . . . . 2 . . . . . . . . Grunt 25 | . . . 11 . . 3 8 2 . . . . . . . . 1 . Brawler 1 | . . . 1 . . . . . . . . . . . . . . . Sentry 8 | . . . 4 . . . 2 2 . . . . . . . . . . Programmer 1 | . . . . . . . . . . . 1 . . . . . . . Best Kill Streak 8 | . 3 . 8 4 . 3 8 4 . 2 1 . . . . . 1 . Combat Bots Only 7 | . 3 . 7 4 . 3 5 2 . 2 1 . . . . . 1 . Max Kills in Single Turn 3 | . 1 . 3 2 . 1 2 2 . 2 1 . . . . . 1 . Gunslinging 1 | . . . 1 . . . . . . . . . . . . . . . Exploded 2 | . . . 2 . . . 2 1 . 2 . . . . . . 1 . Melee . | . . . . . . . . . . . . . . . . . . . Uniques/NPCs Destroyed . | . . . . . . . . . . . . . . . . . . . Combat | -11 -10 -10 -9 -9 -9 -8 -8 -8 -7 -7 -7 -6 -6 -6 -5 -5 -5 -4 -------- Run | Yrd Mat Min Mat Min Exi Min Mat Sto Fac Low Low Fac Low Low Fac Was Fac Fac Hostile Shots Fired 849 | . 14 18 143 22 . 27 93 140 . 87 38 . 14 7 17 . 77 152 Missed 347 | . 4 7 37 6 . 8 22 64 . 46 16 . 9 3 10 . 31 84 Hits 502 | . 10 11 106 16 . 19 71 76 . 41 22 . 5 4 7 . 46 68 Melee 4 | . . . . . . . . . . . . . . . . . 4 . Projectile 498 | . 10 11 106 16 . 19 71 76 . 41 22 . 5 4 7 . 42 68 AOE 2 | . . . . . . . . . . . . . . . . . 2 . Critical Strikes 12 | . . . 1 . . . 2 6 . 1 . . . . . . 1 1 Damage Taken 8469 | . 82 138 1650 125 . 296 1288 1020 . 569 355 . 71 60 176 200 1067 1372 Core 2281 | . 7 22 154 18 . 33 95 305 . 113 135 . 17 . 24 48 146 1164 Absorbed by Shields . | . . . . . . . . . . . . . . . . . . . Regen/Repaired (Parts) 153 | . . . . . . . . 41 86 . . 22 . . . 4 . . Core Remaining (%) 71 | 100 . 88 . . . 48 . 27 . . 64 . . 98 . . 78 . Volleys Fired 150 | . 7 1 64 4 . 14 36 9 . 4 10 . . . . . 1 . Largest 2 | . 2 2 2 2 . 1 2 1 . 1 1 . . . . . 1 . Hottest 58 | . 46 53 53 50 . 23 58 36 . 30 30 . . . . . 43 . Shots Fired 240 | . 14 2 116 8 . 14 62 9 . 4 10 . . . . . 1 . Gun 198 | . 14 1 103 8 . 14 45 3 . . 10 . . . . . . . Cannon . | . . . . . . . . . . . . . . . . . . . Launcher 42 | . . 1 13 . . . 17 6 . 4 . . . . . . 1 . Special . | . . . . . . . . . . . . . . . . . . . Kinetic 198 | . 14 1 103 8 . 14 45 3 . . 10 . . . . . . . Thermal . | . . . . . . . . . . . . . . . . . . . Explosive 38 | . . 1 13 . . . 17 3 . 4 . . . . . . . . Electromagnetic 4 | . . . . . . . . 3 . . . . . . . . 1 . Robot Hit Streak 21 | . 3 . 6 1 . 15 21 5 . 6 4 . . . . . . . Robot Miss Streak 7 | . 3 . 4 7 . . 4 1 . 1 1 . . . . . 1 . Penetration Max . | . . . . . . . . . . . . . . . . . . . Secondary Targets 2 | . . . 1 . . . 1 . . . . . . . . . . . Max Gunslinging Chain 1 | . . . 1 . . . 1 . . . . . . . . . . . Shots Hit Robots 147 | . 6 . 61 3 4 14 38 7 . 2 8 . . . . . 1 3 Core Hits 121 | . 3 . 50 4 . 7 39 12 . 2 2 . . . . . 2 . Critical Kills . | . . . . . . . . . . . . . . . . . . . Critical Parts Destroyed . | . . . . . . . . . . . . . . . . . . . Critical Strikes 1 | . . . . . . . . . . . . . . . . . 1 . Sever 1 | . . . . . . . . . . . . . . . . . 1 . Melee Attacks 11 | . . . . . 4 . . 1 . 1 . . . . . . 1 4 Impact 1 | . . . . . . . . . . 1 . . . . . . . . Slashing 1 | . . . . . . . . . . . . . . . . . 1 . Piercing . | . . . . . . . . . . . . . . . . . . . Sneak Attacks 5 | . . . . . 4 . . 1 . . . . . . . . . . Combat Hostiles . | . . . . . . . . . . . . . . . . . . . Follow-up Attacks . | . . . . . . . . . . . . . . . . . . . Damage Inflicted 5706 | . 133 38 2197 56 . 225 1761 687 . 324 224 . . . . . 61 . Guns 2266 | . 133 . 973 56 . 225 594 61 . . 224 . . . . . . . Cannons . | . . . . . . . . . . . . . . . . . . . Explosions 3382 | . . 38 1222 . . . 1144 626 . 324 . . . . . . 28 . Melee 33 | . . . . . . . . . . . . . . . . . 33 . Ramming 25 | . . . 2 . . . 23 . . . . . . . . . . . Kinetic 2266 | . 133 . 973 56 . 225 594 61 . . 224 . . . . . . . Thermal . | . . . . . . . . . . . . . . . . . . . Explosive 3170 | . . 38 1222 . . . 1144 442 . 324 . . . . . . . . Electromagnetic 212 | . . . . . . . . 184 . . . . . . . . 28 . Impact . | . . . . . . . . . . . . . . . . . . . Slashing 33 | . . . . . . . . . . . . . . . . . 33 . Piercing . | . . . . . . . . . . . . . . . . . . . Highest Corruption 4 | . . . . . . . . . . . 4 . . . . . 2 . Average Corruption 2 | . . . . . . . . . . . 3 . . . . . 1 . Corruption Purged . | . . . . . . . . . . . . . . . . . . . Corruption Blocked . | . . . . . . . . . . . . . . . . . . . Effects 2 | . . . . . . . . . . . 2 . . . . . . . Message Errors 1 | . . . . . . . . . . . 1 . . . . . . . Matter Fused 1 | . . . . . . . . . . . 1 . . . . . . . Overload Shots . | . . . . . . . . . . . . . . . . . . . Overflow Damage 279 | . . . 135 . . . 67 31 . 46 . . . . . . . . Projectiles . | . . . . . . . . . . . . . . . . . . . Explosions 279 | . . . 135 . . . 67 31 . 46 . . . . . . . . Melee . | . . . . . . . . . . . . . . . . . . . Knockbacks . | . . . . . . . . . . . . . . . . . . . Impact . | . . . . . . . . . . . . . . . . . . . Kinetic . | . . . . . . . . . . . . . . . . . . . Secondary . | . . . . . . . . . . . . . . . . . . . Self-Inflicted Damage 520 | . . . 316 . . . 174 13 . . . . . . . . 17 . Shots 11 | . . . 6 . . . 3 1 . . . . . . . . 1 . Rammed 7 | . . . . . . . 7 . . . . . . . . . . . Targets Rammed 8 | . . . 1 . . . 7 . . . . . . . . . . . Kicked 1 | . . . 1 . . . . . . . . . . . . . . . Crushed . | . . . . . . . . . . . . . . . . . . . Highest Temperature 328 | . 12 32 20 . . 26 328 38 . . . . . . . . . . Average Temperature 77 | . 7 11 7 . . 11 138 11 . . . . . . . . . . Received Heat Transfer 2015 | . . 125 486 . . 171 585 315 . 21 9 . 24 . 27 9 33 210 Effects 1 | . . . . . . . 1 . . . . . . . . . . . Matter Decay 1 | . . . . . . . 1 . . . . . . . . . . . Siege Activations . | . . . . . . . . . . . . . . . . . . . Martial Activations . | . . . . . . . . . . . . . . . . . . . Shielding Activations . | . . . . . . . . . . . . . . . . . . . Robots Disrupted . | . . . . . . . . . . . . . . . . . . . Combat Hostiles . | . . . . . . . . . . . . . . . . . . . Robots Corrupted . | . . . . . . . . . . . . . . . . . . . Combat Hostiles . | . . . . . . . . . . . . . . . . . . . Parts Fried . | . . . . . . . . . . . . . . . . . . . Impact Corruptions . | . . . . . . . . . . . . . . . . . . . Robots Melted . | . . . . . . . . . . . . . . . . . . . Combat Hostiles . | . . . . . . . . . . . . . . . . . . . Parts Melted . | . . . . . . . . . . . . . . . . . . . Heat Transferred . | . . . . . . . . . . . . . . . . . . . Parts Sabotaged . | . . . . . . . . . . . . . . . . . . . Parts Stolen . | . . . . . . . . . . . . . . . . . . . Parts Stripped . | . . . . . . . . . . . . . . . . . . . Power Chain Reactions . | . . . . . . . . . . . . . . . . . . . Alert | -11 -10 -10 -9 -9 -9 -8 -8 -8 -7 -7 -7 -6 -6 -6 -5 -5 -5 -4 ------- Run | Yrd Mat Min Mat Min Exi Min Mat Sto Fac Low Low Fac Low Low Fac Was Fac Fac Maximum Alert Level 2 | . . . 2 1 . . . 2 1 . . . . . . . . . Low Security (%) 83 | 100 100 100 24 59 . 100 100 90 97 . . 100 . . 100 100 100 100 Level 1 12 | . . . 51 40 . . . 8 2 . . . . . . . . . Level 2 4 | . . . 23 . . . . . . . . . . . . . . . Level 3 . | . . . . . . . . . . . . . . . . . . . Level 4 . | . . . . . . . . . . . . . . . . . . . Level 5 . | . . . . . . . . . . . . . . . . . . . High Security . | . . . . . . . . . . . . . . . . . . . Max Security . | . . . . . . . . . . . . . . . . . . . Peak Influence 497 | . 60 30 497 262 . 50 198 453 203 . . 37 . . 60 86 53 45 Initial 203 | . . . 10 182 . . . 72 203 . . 37 . . 48 . 53 . Average 76 | . 18 6 267 187 . 4 20 39 65 . . 6 . . 22 30 19 13 Influence Increases 3442 | . 70 38 1026 90 . 70 455 630 85 220 110 24 135 75 27 128 65 194 Destroy 0b10 Robot/C 1080 | . 60 . 500 80 . 60 200 80 20 40 20 . . . . . 20 . Destroy 0b10 Robot/NC 130 | . . . 60 . . . 45 25 . . . . . . . . . . Destroy Leader 236 | . 10 . 124 10 . 10 42 30 10 . . . . . . . . . Allied During Kill 7 | . . . . . . . . . 7 . . . . . . . . . Trap Triggered on 0b10 20 | . . . . . . . . 20 . . . . . . . . . . Successful Hack 135 | . . . 14 . . . 13 40 18 . . 24 . . 12 . . 14 Disable Machine 285 | . . . 195 . . . 75 15 . . . . . . . . . . Destroy Structure 364 | . . 8 133 . . . 80 15 . . . . . . . 128 . . Partial Spotted 45 | . . . . . . . . 30 15 . . . . . . . . . Lose Combat Pursuer 1140 | . . 30 . . . . . 375 15 180 90 . 135 75 15 . 45 180 Influence Decreases 3407 | . 70 10 585 447 112 70 283 353 521 173 110 82 72 63 104 52 141 159 Entered New Map 870 | . . . 18 287 112 . . 100 246 5 12 23 2 13 29 . 23 . Time Decay 2088 | . 70 10 457 160 . 50 193 194 270 128 88 59 70 50 65 42 63 119 Lost Part 434 | . . . 110 . . 20 90 59 . 40 10 . . . 10 . 55 40 Lost Ally 15 | . . . . . . . . . 5 . . . . . . 10 . . Squads Dispatched 22 | . . . 4 . . . 4 2 4 . . 2 . . 1 . 2 3 Investigation 6 | . . . 1 . . . . 1 1 . . 1 . . 1 . 1 . Extermination 3 | . . . . . . . . . 2 . . . . . . . . 1 Reinforcement 11 | . . . 3 . . . 2 1 1 . . 1 . . . . 1 2 Assault . | . . . . . . . . . . . . . . . . . . . Garrison 2 | . . . . . . . 2 . . . . . . . . . . . Intercept . | . . . . . . . . . . . . . . . . . . . Searches Triggered . | . . . . . . . . . . . . . . . . . . . Construction Impeded 1 | . . . 1 . . . . . . . . . . . . . . . Haulers Reinforced . | . . . . . . . . . . . . . . . . . . . Active Scanning Responses . | . . . . . . . . . . . . . . . . . . . Cargo Convoy Interrupts . | . . . . . . . . . . . . . . . . . . . Stealth | -11 -10 -10 -9 -9 -9 -8 -8 -8 -7 -7 -7 -6 -6 -6 -5 -5 -5 -4 --------- Run | Yrd Mat Min Mat Min Exi Min Mat Sto Fac Low Low Fac Low Low Fac Was Fac Fac Distress Signals 10 | . . 1 3 . . . . 3 1 . . . . . . . 1 1 Communications Jammed . | . . . . . . . . . . . . . . . . . . . Distress Signals . | . . . . . . . . . . . . . . . . . . . Times Spotted 207 | . 3 6 36 4 . 3 20 35 6 17 8 3 10 6 5 3 17 25 Peak Tracking Total 14 | . 3 4 4 4 . 3 5 14 5 6 6 2 4 3 3 1 13 13 Tactical Retreats 32 | . . 1 . . . . . 9 1 6 2 . 4 1 1 . 2 5 Traps | -11 -10 -10 -9 -9 -9 -8 -8 -8 -7 -7 -7 -6 -6 -6 -5 -5 -5 -4 ------- Run | Yrd Mat Min Mat Min Exi Min Mat Sto Fac Low Low Fac Low Low Fac Was Fac Fac Traps Triggered 7 | . . . 1 . . . . 1 1 . . . . . 1 . 1 2 Indirectly . | . . . . . . . . . . . . . . . . . . . Trap Hack Attempts 24 | . . . . . . . . 24 . . . . . . . . . . Triggered . | . . . . . . . . . . . . . . . . . . . Disarmed . | . . . . . . . . . . . . . . . . . . . Reprogrammed 3 | . . . . . . . . 3 . . . . . . . . . . Reused 2 | . . . . . . . . 2 . . . . . . . . . . Traps Extracted . | . . . . . . . . . . . . . . . . . . . Installed . | . . . . . . . . . . . . . . . . . . . Triggered 2 | . . . . . . . . 2 . . . . . . . . . . Machines | -11 -10 -10 -9 -9 -9 -8 -8 -8 -7 -7 -7 -6 -6 -6 -5 -5 -5 -4 ---------- Run | Yrd Mat Min Mat Min Exi Min Mat Sto Fac Low Low Fac Low Low Fac Was Fac Fac Machines Disabled 19 | . . . 13 . . . 5 1 . . . . . . . . . . Max in Single Turn 2 | . . . 2 . . . 1 1 . . . . . . . . . . Garrison Access 3 | . . . . . . . . . 1 . . 1 . . . . 1 . Machines Repaired . | . . . . . . . . . . . . . . . . . . . Machines Dismantled . | . . . . . . . . . . . . . . . . . . . Machines Sabotaged . | . . . . . . . . . . . . . . . . . . . Overloaded Fab Kills . | . . . . . . . . . . . . . . . . . . . Hacking | -11 -10 -10 -9 -9 -9 -8 -8 -8 -7 -7 -7 -6 -6 -6 -5 -5 -5 -4 --------- Run | Yrd Mat Min Mat Min Exi Min Mat Sto Fac Low Low Fac Low Low Fac Was Fac Fac Machines Accessed 41 | . 2 . 4 . 3 . 4 3 10 . . 6 1 1 2 . 3 2 Terminals 22 | . 2 . 4 . . . 4 2 4 . . 3 . . 1 . 1 1 Fabricators 4 | . . . . . . . . . 3 . . . . . . . 1 . Repair Stations 3 | . . . . . . . . 1 1 . . 1 . . . . . . Recycling Units . | . . . . . . . . . . . . . . . . . . . Scanalyzers 4 | . . . . . . . . . 1 . . 1 . . 1 . . 1 Garrison Access 3 | . . . . . . . . . 1 . . 1 . . . . 1 . Total Hacks 151 | . 5 . 8 . 33 . 8 11 19 . . 15 1 1 38 . 9 3 Successful 101 | . . . 1 . 33 . 4 5 11 . . 6 1 1 30 . 7 2 Failed 49 | . 5 . 7 . . . 4 6 8 . . 9 . . 7 . 2 1 Catastrophic 9 | . 1 . 2 . . . 2 . 1 . . 2 . . 1 . . . Database Lockouts 1 | . . . . . . . . . . . . . . . 1 . . . Manual 30 | . 4 . 4 . 1 . 5 1 2 . . 6 . . 3 . 3 1 Terminals 55 | . 5 . 8 . . . 8 6 6 . . 10 . . 7 . 3 2 Fabricators 9 | . . . . . . . . . 4 . . . . . . . 5 . Repair Stations 13 | . . . . . . . . 5 5 . . 3 . . . . . . Recycling Units . | . . . . . . . . . . . . . . . . . . . Scanalyzers 35 | . . . . . . . . . 2 . . 1 . . 31 . . 1 Garrison Access 4 | . . . . . . . . . 2 . . 1 . . . . 1 . Terminal Hacks 54 | . . . 1 . 33 . 4 3 4 . . 3 1 1 2 . 1 1 Record 33 | . . . . . 32 . . . 1 . . . . . . . . . Robot Analysis 2 | . . . . . . . 1 . . . . 1 . . . . . . Prototype ID Bank 1 | . . . . . . . . 1 . . . . . . . . . . Open Door 3 | . . . . . . . . 1 . . . . 1 1 . . . . Open DSF 2 | . . . . . . . . . 2 . . . . . . . . . Level Access Points 3 | . . . . . . . . . . . . 1 . . 1 . 1 . Branch Access Points 5 | . . . . . . . 1 1 1 . . 1 . . . . . 1 Recall Investigation 1 | . . . . . . . . . . . . . . . 1 . . . Hauler Manifests 2 | . . . 1 . . . 1 . . . . . . . . . . . Registered Components 1 | . . . . . . . 1 . . . . . . . . . . . Proto ID Catalog 1 | . . . . . 1 . . . . . . . . . . . . . Fabricator Hacks 7 | . . . . . . . . . 2 . . . . . . . 5 . Network Status 1 | . . . . . . . . . . . . . . . . . 1 . Load Schematic 3 | . . . . . . . . . . . . . . . . . 3 . Build 3 | . . . . . . . . . 2 . . . . . . . 1 . Repair Station Hacks 8 | . . . . . . . . 2 4 . . 2 . . . . . . Scan Component 4 | . . . . . . . . 1 2 . . 1 . . . . . . Repair 4 | . . . . . . . . 1 2 . . 1 . . . . . . Recycling Unit Hacks . | . . . . . . . . . . . . . . . . . . . Scanalyzer 29 | . . . . . . . . . . . . . . . 28 . . 1 Insert Component 11 | . . . . . . . . . . . . . . . 11 . . . Analyze 9 | . . . . . . . . . . . . . . . 9 . . . Retrieve Study 9 | . . . . . . . . . . . . . . . 8 . . 1 Garrison Access Hacks 3 | . . . . . . . . . 1 . . 1 . . . . 1 . Seal Access 3 | . . . . . . . . . 1 . . 1 . . . . 1 . Unauthorized Hacks . | . . . . . . . . . . . . . . . . . . . Terminals . | . . . . . . . . . . . . . . . . . . . Fabricators . | . . . . . . . . . . . . . . . . . . . Repair Stations . | . . . . . . . . . . . . . . . . . . . Recycling Units . | . . . . . . . . . . . . . . . . . . . Scanalyzers . | . . . . . . . . . . . . . . . . . . . Garrison Access . | . . . . . . . . . . . . . . . . . . . Data Cores Recovered . | . . . . . . . . . . . . . . . . . . . Used . | . . . . . . . . . . . . . . . . . . . Hacking Detections 30 | . 2 . 4 . . . 4 3 7 . . 5 . . 2 . 2 1 Full Trace Events 4 | . . . . . . . . . 1 . . 1 . . 1 . 1 . Feedback Events . | . . . . . . . . . . . . . . . . . . . Feedback Blocked . | . . . . . . . . . . . . . . . . . . . Robot Schematics Acquired . | . . . . . . . . . . . . . . . . . . . Robots Built 4 | . . . . . . . . . 4 . . . . . . . . . Authchips . | . . . . . . . . . . . . . . . . . . . Time 107 | . . . . . . . . . 107 . . . . . . . . . Total Robot Build Rating 13 | . . . . . . . . . 13 . . . . . . . . . Part Schematics Acquired 9 | . . . . . . . . . . . . . . . 9 . . . Parts Built 1 | . . . . . . . . . . . . . . . . . 1 . Authchips . | . . . . . . . . . . . . . . . . . . . Time 116 | . . . . . . . . . . . . . . . . . 116 . Total Part Build Rating 3 | . . . . . . . . . . . . . . . . . 3 . Part Studies Acquired 9 | . . . . . . . . . . . . . . . 8 . . 1 Parts Repaired 4 | . . . . . . . . 1 2 . . 1 . . . . . . Time 136 | . . . . . . . . 19 92 . . 25 . . . . . . Parts Recycled . | . . . . . . . . . . . . . . . . . . . Recycled Matter . | . . . . . . . . . . . . . . . . . . . Retrieved Matter . | . . . . . . . . . . . . . . . . . . . Retrieved Components . | . . . . . . . . . . . . . . . . . . . Parts Scanalyzed 9 | . . . . . . . . . . . . . . . 9 . . . Part Schematics Acquired 9 | . . . . . . . . . . . . . . . 9 . . . Parts Damaged 2 | . . . . . . . . . . . . . . . 2 . . . Bothacking | -11 -10 -10 -9 -9 -9 -8 -8 -8 -7 -7 -7 -6 -6 -6 -5 -5 -5 -4 ------------ Run | Yrd Mat Min Mat Min Exi Min Mat Sto Fac Low Low Fac Low Low Fac Was Fac Fac Used RIF Installer . | . . . . . . . . . . . . . . . . . . . Robots Hacked 6 | . . . . . 4 . . 1 . . . . . . . . . 1 Non-combat 4 | . . . . . 2 . . 1 . . . . . . . . . 1 Combat 2 | . . . . . 2 . . . . . . . . . . . . . Robot Hacks Applied 8 | . . . . . 4 . . 1 . . . . . . . . . 3 parse_system 6 | . . . . . 4 . . 1 . . . . . . . . . 1 check_alert 2 | . . . . . . . . . . . . . . . . . . 2 Relay Couplers Released . | . . . . . . . . . . . . . . . . . . . Fabnet Peak Effective % . | . . . . . . . . . . . . . . . . . . . Robots Rewired . | . . . . . . . . . . . . . . . . . . . Allies Hacked . | . . . . . . . . . . . . . . . . . . . Hacks Repelled . | . . . . . . . . . . . . . . . . . . . Allies | -11 -10 -10 -9 -9 -9 -8 -8 -8 -7 -7 -7 -6 -6 -6 -5 -5 -5 -4 -------- Run | Yrd Mat Min Mat Min Exi Min Mat Sto Fac Low Low Fac Low Low Fac Was Fac Fac Total Allies 24 | . . . . . . . . . 4 . . . . . . 20 . . Largest Group 20 | . . . . . . . . . 4 . . . . . . 20 . . Highest-Rated Group 715 | . . . . . . . . . 70 . . . . . . 715 . . Highest-Rated Ally 50 | . . . . . . . . . 20 . . . . . . 50 . . Total Orders . | . . . . . . . . . . . . . . . . . . . Ally Attacks 116 | . . . . . . . . . 1 . . . . . . 115 . . Total Damage 4739 | . . . . . . . . . 36 . . . . . . 4703 . . Kills 9 | . . . . . . . . . 1 . . . . . . 8 . . Allies Corrupted . | . . . . . . . . . . . . . . . . . . . Allies Melted . | . . . . . . . . . . . . . . . . . . . Intel | -11 -10 -10 -9 -9 -9 -8 -8 -8 -7 -7 -7 -6 -6 -6 -5 -5 -5 -4 ------- Run | Yrd Mat Min Mat Min Exi Min Mat Sto Fac Low Low Fac Low Low Fac Was Fac Fac Active Infowar (turns) 1026 | . . . 307 . . . . . . . . 171 228 116 139 . 63 2 Sensors 307 | . . . 307 . . . . . . . . . . . . . . . Jamming 717 | . . . . . . . . . . . . 171 228 116 139 . 63 . ECM 2 | . . . . . . . . . . . . . . . . . . 2 Robot Analysis Total 2 | . . . . . . . 1 . . . . 1 . . . . . . Derelict Logs Recovered 7 | . . . . 2 . . . . . 1 3 . 1 . . . . . Drone Launches . | . . . . . . . . . . . . . . . . . . . Drone Recoveries . | . . . . . . . . . . . . . . . . . . . Exploration | -11 -10 -10 -9 -9 -9 -8 -8 -8 -7 -7 -7 -6 -6 -6 -5 -5 -5 -4 ------------- Run | Yrd Mat Min Mat Min Exi Min Mat Sto Fac Low Low Fac Low Low Fac Was Fac Fac Turns Passed 9644 | 56 239 78 1430 320 813 551 1995 1380 723 289 218 280 228 116 180 173 211 364 Spaces Moved 9020 | 49 172 62 725 190 502 247 615 1056 1383 573 517 407 545 289 346 327 343 672 Core 306 | 20 . . . . . . . 1 . . . . . . . . . 285 Treads 2551 | . . . 382 190 502 247 615 615 . . . . . . . . . . Legs 606 | 29 172 62 343 . . . . . . . . . . . . . . . Wheels . | . . . . . . . . . . . . . . . . . . . Hover 2644 | . . . . . . . . . . . . 407 545 289 346 327 343 387 Flight 2913 | . . . . . . . . 440 1383 573 517 . . . . . . . Fastest Speed 29 | 50 120 120 120 160 160 160 160 32 29 29 34 40 40 40 40 40 40 50 Average Speed 80 | 91 120 120 158 160 160 160 170 107 29 46 34 42 40 40 40 40 40 50 Slowest Speed 260 | 120 120 120 260 160 160 160 240 240 29 102 34 45 40 40 40 40 50 50 Overloaded Moves . | . . . . . . . . . . . . . . . . . . . Propulsion Burnouts . | . . . . . . . . . . . . . . . . . . . Robots Hopped 6 | . . . . . . . . 6 . . . . . . . . . . Potential Cave-ins 1 | . . . . . . . . . . 1 . . . . . . . . Cave-ins Triggered . | . . . . . . . . . . . . . . . . . . . Exploration Rate (%) 43 | 3 24 32 58 48 89 40 29 85 32 79 80 9 72 28 7 95 11 14 Regions Visited 18 Branch Regions 9 Pre-discovered Areas 3 | . . . . 2 1 . . . . . . . . . . . . . Known Exits Taken 10 | . . . 1 1 1 1 1 . 1 . . 1 1 1 . . 1 . Unknown Exits Taken 6 | 1 1 1 . . . . . 1 . 1 1 . . . . . . . Scrap Searched 10 | . . . . 1 . 1 . . . 1 1 . 4 2 . . . . Spaces Dug . | . . . . . . . . . . . . . . . . . . . Terrain Destroyed 249 | . . 8 128 . . . 79 15 . 19 . . . . . . . . Melee . | . . . . . . . . . . . . . . . . . . . Projectile . | . . . . . . . . . . . . . . . . . . . AOE 249 | . . 8 128 . . . 79 15 . 19 . . . . . . . . Terrain Rammed . | . . . . . . . . . . . . . . . . . . . Walls Destroyed . | . . . . . . . . . . . . . . . . . . . Machines Disabled . | . . . . . . . . . . . . . . . . . . . Actions | -11 -10 -10 -9 -9 -9 -8 -8 -8 -7 -7 -7 -6 -6 -6 -5 -5 -5 -4 --------- Run | Yrd Mat Min Mat Min Exi Min Mat Sto Fac Low Low Fac Low Low Fac Was Fac Fac Total 11172 | 58 194 64 900 199 512 389 1496 1292 1703 592 549 515 554 288 387 368 411 701 Wait 1678 | . . . 50 2 . 121 816 161 285 9 14 82 5 . 36 36 55 6 Move 8993 | 48 171 61 724 189 501 246 615 1044 1382 572 516 406 544 288 346 326 342 672 Hop 5 | . . . . . . . . 5 . . . . . . . . . . Pick Up 107 | 4 7 . 21 1 2 2 9 18 10 1 5 7 4 . 2 6 8 . Fast Attach 28 | 3 . . 7 . . 1 4 6 3 . . 1 . . . . 1 2 Attach 63 | 3 . 1 12 . 1 3 4 10 6 2 2 12 1 . 3 . 2 1 Detach 27 | . . 1 5 . . . . 8 1 3 2 6 . . . . . 1 Swap 11 | . 4 . 5 1 . . 1 . . . . . . . . . . . Drop 38 | . 5 . 11 2 4 2 5 6 1 . . 1 . . . . 1 . Fire 150 | . 7 1 64 4 . 14 36 9 . 4 10 . . . . . 1 . Melee 11 | . . . . . 4 . . 1 . 1 . . . . . . 1 4 Ram . | . . . . . . . . . . . . . . . . . . . Kick 1 | . . . 1 . . . . . . . . . . . . . . . Crush 6 | . . . . . . . 6 . . . . . . . . . . . Escape Stasis 30 | . . . . . . . . . 15 . . . . . . . . 15 Rewire . | . . . . . . . . . . . . . . . . . . . Trap 24 | . . . . . . . . 24 . . . . . . . . . . Miscellaneous . | . . . . . . . . . . . . . . . . . . . Route ------- -11/Scrapyard -10/Materials -10/Mines -9/Materials (discovered 3 exits: *Mat x2 / *Min) -9/Mines (discovered 2 exits: *Mat / *Exi) -9/Exiles -8/Mines -8/Materials -8/Storage (discovered 2 exits: *Fac / Rec) -7/Factory (discovered 3 exits: *Fac / *Low x2) -7/Lower Caves -7/Lower Caves -6/Factory (discovered 6 exits: Fac x4 / *Low x2) -6/Lower Caves -6/Lower Caves -5/Factory (discovered 5 exits: Fac x4 / Upp) -5/Waste -5/Factory (discovered 4 exits: *Fac x4) -4/Factory (discovered 5 exits: Upp x2 / Ext x2 / *Arm) History --------- Turn | Location | Event 25 | -11/Scrapyard | Discovered new exit (range 16) 57 | -11/Scrapyard | Entered Materials 270 | -10/Materials | Discovered new exit (range 16) 296 | -10/Materials | Entered Mines 301 | -10/Mines | Assembled infested the area 329 | -10/Mines | Build established: Mutant 369 | -10/Mines | Discovered new exit (range 5) 374 | -10/Mines | Entered Materials 374 | -9/Materials | Evolved 2 slots: Propulsion x1, Utility x1 700 | -9/Materials | Discovered new exit (range 9) 726 | -9/Materials | Identified exit to Materials 735 | -9/Materials | Destroyed 7 combat bots 800 | -9/Materials | Lost 5 parts (1p3n1u) 1470 | -9/Materials | Build established: Scavenger-Mutant 1640 | -9/Materials | Discovered exit to Materials (range 4) 1763 | -9/Materials | Discovered new exit (range 14) 1803 | -9/Materials | Identified exit to Mines 1804 | -9/Materials | Entered Mines 1811 | -9/Mines | Learned location of Zion (-7) 2055 | -9/Mines | Discovered exit to Materials (range 9) 2116 | -9/Mines | Deemed a non-threat by the Exiles lab entrance 2117 | -9/Mines | Discovered new exit (range 5) 2122 | -9/Mines | Identified exit to Exiles 2124 | -9/Mines | Entered Exiles 2173 | -9/Exiles | Met 8R-AWN 2202 | -9/Exiles | Met EX-HEX 2259 | -9/Exiles | Met EX-BIN 2280 | -9/Exiles | Aligned with FarCom system 2282 | -9/Exiles | Given EX-Vault access code 2343 | -9/Exiles | Opened EX-Vault 2357 | -9/Exiles | Found Lightpack 2.0 2387 | -9/Exiles | Warned to stay clear of 0b10 Research branches 2438 | -9/Exiles | Met EX-DEC 2644 | -9/Exiles | Visited The Gauntlet 2867 | -9/Exiles | Discovered new exit (range 14) 2935 | -9/Exiles | Identified exit to Mines 2937 | -9/Exiles | Left Exiles lab with Lightpack 2.0 2937 | -9/Exiles | Entered Mines 2964 | -8/Mines | Core integrity fell below 50% 2992 | -8/Mines | Lost 3 parts (1p1n1u) 3443 | -8/Mines | Discovered exit to Materials (range 9) 3488 | -8/Mines | Entered Materials 3488 | -8/Materials | Evolved 2 slots: Utility x2 3536 | -8/Materials | Identified exit to Storage 3663 | -8/Materials | Lost 5 parts (1p2n2u) 5335 | -8/Materials | Garrison activated, responded to threat 5483 | -8/Materials | Entered Storage 5515 | -8/Storage | Identified exit to Recycling 5669 | -8/Storage | Build established: Mutant 5991 | -8/Storage | Build established: Hauler-Mutant 6196 | -8/Storage | Repaired Lgt. Nuclear Core 6689 | -8/Storage | Lost 5 parts (1p2n2u) 6840 | -8/Storage | Core integrity fell below 50% 6858 | -8/Storage | Discovered new exit (range 16) 6863 | -8/Storage | Entered Factory 6863 | -7/Factory | Evolved 2 slots: Propulsion x1, Utility x1 7045 | -7/Factory | Fabricated B-48 Gladiator (x3) 7150 | -7/Factory | Repaired Imp. VTOL Module 7184 | -7/Factory | Repaired Mni. Grenade Launcher 7194 | -7/Factory | Identified exit to DSF 7357 | -7/Factory | Fabricated A-02 Transporter? 7452 | -7/Factory | Build established: Hauler-Sprinter 7456 | -7/Factory | Discovered new exit (range 11) 7511 | -7/Factory | Identified exit to Lower Caves 7586 | -7/Factory | Entered Lower Caves 7618 | -7/Lower Caves | Attracted the attention of an 0b10 checkpoint 7870 | -7/Lower Caves | Discovered new exit (range 12) 7874 | -7/Lower Caves | Learned Factory garrison access intel 7875 | -7/Lower Caves | Entered another Lower Caves area 7901 | -7/Lower Caves | Ambushed by research squad 8076 | -7/Lower Caves | Learned Factory terminal intel 8077 | -7/Lower Caves | Discovered new exit (range 11) 8079 | -7/Lower Caves | Encountered a Warlord checkpoint 8081 | -7/Lower Caves | Learned Factory stockpile data 8093 | -7/Lower Caves | Entered Factory 8093 | -6/Factory | Evolved 2 slots: Utility x2 8095 | -6/Factory | Loaded intel: 26 terminal locations 8096 | -6/Factory | Loaded intel: 4 garrison access locations 8180 | -6/Factory | Identified exit to Lower Caves 8180 | -6/Factory | Identified exit to Factory 8320 | -6/Factory | Repaired Imp. Flight Unit 8373 | -6/Factory | Entered Lower Caves 8389 | -6/Lower Caves | Build established: Hacker-Mutant 8408 | -6/Lower Caves | Ambushed by wild Derelicts 8467 | -6/Lower Caves | Identified exit to Lower Caves 8500 | -6/Lower Caves | Attracted the attention of an 0b10 checkpoint 8542 | -6/Lower Caves | Found DCF Scrap (15 items) 8601 | -6/Lower Caves | Entered another Lower Caves area 8643 | -6/Lower Caves | Discovered exit to Factory (range 9) 8717 | -6/Lower Caves | Entered Factory 8717 | -5/Factory | Evolved 2 slots: Utility x2 8718 | -5/Factory | Identified exit to Upper Caves 8722 | -5/Factory | Identified exit to Factory 8889 | -5/Factory | Central database locked down 8897 | -5/Factory | Sucked down chute 8897 | -5/Factory | Entered Waste 8898 | -5/Waste | Met a frightened Derelict 8912 | -5/Waste | Spotted C-40 Crusher 8928 | -5/Waste | Warlord forces began an assault 8981 | -5/Waste | Allies destroyed C-40 Crusher 8985 | -5/Waste | Spotted C-40 Crusher 8994 | -5/Waste | Allies destroyed C-40 Crusher 9002 | -5/Waste | Spotted C-40 Crusher 9009 | -5/Waste | Lost 3 allies 9024 | -5/Waste | Spotted C-40 Crusher 9025 | -5/Waste | Spotted C-40 Crusher 9026 | -5/Waste | Allies destroyed C-40 Crusher 9029 | -5/Waste | Allies destroyed C-40 Crusher 9043 | -5/Waste | Spotted C-40 Crusher 9051 | -5/Waste | Allies destroyed C-40 Crusher 9055 | -5/Waste | Found Damper Plating 9064 | -5/Waste | Discovered new exit (range 12) 9070 | -5/Waste | Entered Factory 9199 | -5/Factory | Fabricated Imp. VTOL Module? 9262 | -5/Factory | Lost 3 parts (1p1n1w) 9281 | -5/Factory | Entered another Factory area 9281 | -4/Factory | Evolved 2 slots: Utility x2 9289 | -4/Factory | Identified exit to Upper Caves 9289 | -4/Factory | Identified exit to Extension 9289 | -4/Factory | Identified exit to Armory 9309 | -4/Factory | Lost 9 parts (1p3n4u1w) 9549 | -4/Factory | Core integrity fell below 50% 9579 | -4/Factory | Lost 6 parts (1n4u1w) 9635 | -4/Factory | Core integrity fell below 20% 9645 | -4/Factory | Destroyed by Y-72 Warden with Railgun Last Messages --------------- Field strength at 94. Field strength at 88. Field strength at 82. Field strength at 76. Field strength at 70. Field strength at 64. Field strength at 58. Field strength at 52. Field strength at 46. Field strength at 40. Field strength at 34. Field strength at 28. Field strength at 22. Field strength at 16. Field strength at 10. Field strength at 4. Stasis field depleted. K-01 Serf destroyed. K-01 Serf collects debris. Penetrated by Slug. Map ----- +----------------------------------------------------+ | ?????????????????????????????????????????????????? | | ?????????????????????????????????????????????????? | | ?????????????????????????????????????????????????? | | ?????????????????????????????????????????????????? | | ?????????????????????????????????????????????????? | | ?????????????????????????????????????????????????? | | ?????????????????????????????????????????????????? | | ?????????????????????????????????????????????????? | | ?????????????????????????????????????????????????? | | ???????????????????????????????????????????????? ? | | ??????????????????????????"????????????????????? | | ?????????????????????????"" ????????????????""? | | ???????????????????? ????? ???????????????#"F | | ???????????????????##+#####/######?????????#""" | | ???????????????"???" """""?????????# "" | | ???????????????"[[?? g g "[["#????????+ | | ???????????????"[[ ? [["#????????# | | ??????????????#"[[ ?"" """ [["#????????# # | | ??????????????#""" "## ##" """########## # | | ???????????????" "# #" "# g # | | ????????????????? Y + # | | ????????????????? Y > Y g # | | ?????????????????? Y + # | | ?????????????????????# #" "# # | | ?????????????????" "## ##" """### ###+#### | | ??????????????#"[[ """ @""" [["#?# # | | ??????????????#"[[ [["#?#! # """" | | ??????????????#"[[" "[["#?#% # """" | | ??????????????#""""" """""#?#* # = """" | | ????????????????###########g#######?# # """" | | ?????????????????????????g ???????# # """" | | ?????????????????????????"" " ??????# # """" | | ????????????????????????""""""??????# # """" | | ????????????????????????#######?????# # | | ????????????????????????????????????# ####+### | | ????????????????????????????????????# #??# #?? | | ????????????????????????????????????# #?##+### | | ????????????????????????????????????# #?# | | ????????????????????????????????????? ??# | | ????????????????????????????????????????????# | | ????????????????????????????????????????????# | | ????????????????????????????????????????????# | | ????????????????????????????????????????????# | | ????????????????????????????????????????????# | | ????????????????????????????????????????????# | | ????????????????????????????????????????????# | | ????????????????????????????????????????????# | | | ????????????????????????????????????????????# | | ????????????????????????????????????????????# | | ????????????????????????????????????????????###### | +----------------------------------------------------+ Best States ------------- Heat Dissipation 45 Energy Generation 15 Energy Capacity 265 Matter Stores 300 Matter Capacity 300 Sight Range 16 Robot Scan Range 14 Terrain Scan Density 10 ECM Strength 2 Jamming Range 12 Armor Coverage 825 Evasion (%) 64 Recoil Reduction 3 Offensive Hacking 20 Defensive Hacking 20 Item Schematics ----------------- Imp. Flight Unit | -5/Factory | Scanalyzed Cld. Aerolev Unit | -5/Factory | Scanalyzed Nuclear Pulse Thruster | -5/Factory | Scanalyzed Imp. VTOL Module | -5/Factory | Scanalyzed Falx | -5/Factory | Scanalyzed System Shield | -5/Factory | Scanalyzed Gravmag System | -5/Factory | Scanalyzed Adv. EMP Blaster | -5/Factory | Scanalyzed Adv. Sensor Array | -5/Factory | Scanalyzed Robot Schematics ------------------ None Fabricated ------------ B-48 Gladiator | x3 | -7/Factory | Preloaded A-02 Transporter | x1 | -7/Factory | Preloaded Imp. VTOL Module | x1 | -5/Factory Repaired ---------- Lgt. Nuclear Core | 18% | -8/Storage Imp. VTOL Module | 8% | -7/Factory Mni. Grenade Launcher | 20% | -7/Factory Imp. Flight Unit | 45% | -6/Factory Studied --------- Imp. Hover Unit | -5/Factory | Hacked Imp. Ion Engine | -5/Factory | Hacked Imp. Datajack | -5/Factory | Hacked Gravmag System | -5/Factory | Hacked Coil Gun | -5/Factory | Hacked Remote Datajack | -5/Factory | Hacked EM Pulse Cannon | -5/Factory | Hacked Falx | -5/Factory | Hacked Adv. Datajack | -4/Factory | Hacked Alien Tech Used ----------------- None Achievements -------------- Junior Dev Knowing Is Half The Battle My Command Is Your Wish Packrat Throw Away The Key We Are Legion Challenges ------------ None Game ------ Seed MicrowarpCommWall Manual? 0 Play Time 02:23:59 Cumulative 21.6 hours Start 2025.11.04 @ 00:11:36 End 2025.11.04 @ 02:31:08 Sessions 1 Manual Loads 0 Difficulty Rogue Special Mode None Game No. 17 Rogue 17 Adventurer 0 Explorer 0 Win Type - Total 1 Types 1/0/0/0/0/0/0/0/0/0 Lore% 15 Gallery% 21 Achievement% 23 Wizard Run 0 Options --------- Layout 0 ASCII 1 Keyboard 1 Movement Arrows Keybinds 0 Fullscreen 2 Font 18/SmallcapsGlow Map View 76x50 Zoom Use 0% Tactical HUD 0 Map Filters NONE Filters NONE Steam 1 RUN: 197fa056-c5d2-473a-a485-b0444fd8c535